bitfinex-derivatives/quotes_ETHF0:USTF0_20251006
["timestamp","ask_amount","ask_price","bid_price","bid_amount"]
[1759752119196,4.25682386,4576.3,4576.2,0.76937594]
[1759752119386,3.64046386,4576.3,4576.2,0.76937594]
[1759752119590,0.22056271,4576.3,4576.2,1.16254594]
[1759752120302,0.22056271,4576.3,4576.2,6.16254594]
[1759752120487,0.00156271,4576.3,4576.2,6.16254594]
[1759752121092,1.00457,4577.9,4577.6,0.39305]
[1759752121093,3.2078,4577.7,4577.6,0.39305]
[1759752121398,3.2078,4577.7,4577.6,1.16185]
[1759752121600,3.4268,4577.7,4577.6,1.16185]
[1759752121796,3.4268,4577.7,4577.6,0.7688]
[1759752121991,3.95451322,4577.7,4577.6,0.7688]
[1759752122197,0.22181322,4577.7,4577.6,1.16185]
[1759752122499,0.52831322,4577.7,4577.6,1.16185]
[1759752123099,0.22181322,4577.7,4577.6,1.16185]
[1759752123703,0.52831322,4577.7,4577.6,1.16185]
[1759752124099,0.52831322,4577.7,4577.6,0.7688]
[1759752124296,0.74671322,4577.7,4577.6,0.7688]
[1759752124902,0.44021322,4577.7,4577.6,0.7688]
[1759752125204,0.74671322,4577.7,4577.6,0.7688]
[1759752126004,0.00281322,4577.7,4577.6,5.7688]
[1759752127901,0.022,4577.9,4577.7,0.39304]
[1759752128101,0.022,4577.9,4577.8,0.9878]
[1759752128806,0.02414384,4577.9,4577.8,41.7878]
[1759752131008,0.02414384,4577.9,4577.8,41.5688]
[1759752131311,0.8665,4579.0,4578.9,0.7688]
[1759752131716,0.8665,4579.0,4578.9,0.4429]
[1759752132214,0.86874275,4579.0,4578.9,0.4429]
[1759752132418,0.86874275,4579.0,4578.9,0.2217]
[1759752135107,0.8665,4578.5,4578.4,3.4295]
[1759752138119,0.8665,4578.5,4577.9,3.2078]
[1759752138418,0.8716,4577.5,4577.4,0.2041]
[1759752138610,0.7436,4577.1,4577.0,0.2041]
[1759752140115,0.7436,4577.1,4577.0,1.138]
[1759752140321,0.3067,4577.1,4577.0,1.138]
[1759752141013,0.3067,4577.3,4576.8,41.7828]
[1759752141220,0.5193,4577.3,4577.2,3.9527]
[1759752142616,0.3067,4577.3,4577.2,3.9527]
[1759752142825,0.5257,4577.8,4577.7,0.5391]
[1759752143022,0.7383,4577.8,4577.7,0.7449]
[1759752143820,0.9626,4577.8,4577.7,0.42374202]
[1759752144224,0.7383,4577.8,4577.7,0.75874202]
[1759752144924,0.9626,4577.8,4577.7,0.75874202]
[1759752146028,0.9626,4577.8,4577.7,0.42374202]
[1759752146422,0.9626,4577.8,4577.7,0.21794202]
[1759752146628,1.35563,4577.8,4577.7,0.01384202]
[1759752148817,1.35563,4577.8,4577.7,0.21794202]
[1759752149729,0.9626,4577.8,4577.7,0.21794202]
[1759752150023,1.44115813,4577.8,4577.7,0.42374202]
[1759752150229,0.9626,4577.8,4577.7,1.15178202]
[1759752151229,1.17276798,4578.8,4577.7,1.15178202]
[1759752151230,0.5613,4578.5,4578.4,0.80288]
[1759752151529,1.087,4578.5,4578.4,1.13788]
[1759752151727,0.7383,4578.5,4578.4,4.34568]
[1759752151933,0.5193,4578.5,4578.4,4.35952202]
[1759752152224,0.5257,4578.7,4578.6,1.13786]
[1759752152933,0.219,4578.7,4578.6,1.15170202]
[1759752153126,0.30894275,4579.0,4578.9,0.39294]
[1759752153433,0.87384275,4579.0,4578.9,1.13784]
[1759752153838,0.87384275,4579.0,4578.9,1.15168202]
[1759752154728,0.87384275,4579.0,4578.9,0.42374202]
[1759752154928,0.87384275,4579.0,4578.9,0.21794202]
[1759752156033,0.87384275,4579.0,4578.9,0.42784202]
[1759752156933,0.87384275,4579.0,4578.9,0.75614202]
[1759752157422,0.87384275,4579.0,4578.9,0.42784202]
[1759752157829,0.87384275,4579.0,4578.9,0.75614202]
[1759752158934,0.52154275,4579.0,4578.9,0.75614202]
[1759752159137,0.00224275,4579.0,4578.9,0.75614202]
[1759752160036,0.53314275,4579.0,4578.9,41.55614202]
[1759752161134,0.66564275,4579.0,4578.9,41.55614202]
[1759752161737,0.66564275,4579.0,4578.9,41.22784202]
[1759752161928,0.00224275,4579.0,4578.9,41.55614202]
[1759752162331,0.32284275,4579.0,4578.9,41.55614202]
[1759752162634,0.00224275,4579.0,4578.9,41.94908202]
[1759752165034,0.2103,4579.5,4579.4,1.15079]
[1759752165239,0.4295,4580.5,4580.4,0.7579]
[1759752165431,0.2103,4580.5,4580.4,0.7579]
[1759752165837,0.2103,4580.5,4580.4,40.8]
[1759752165838,0.562,4580.5,4580.4,40.8]
[1759752166034,0.56409057,4580.5,4580.4,40.81665215]
[1759752166235,8.9787788,4580.5,4580.4,0.01665215]
[1759752166540,9.45623245,4580.5,4580.4,0.01665215]
[1759752166840,9.45622929,4580.5,4580.4,0.01665215]
[1759752167041,6.10369057,4580.5,4580.4,0.01665215]
[1759752167435,6.10369057,4580.5,4580.4,0.40947215]
[1759752167830,6.10369057,4580.5,4580.4,0.23635215]
[1759752168136,1.10369057,4580.5,4580.4,0.57465215]
[1759752168338,0.97119057,4580.5,4580.4,0.57465215]
[1759752168843,1.10599057,4580.5,4580.4,0.01665215]
[1759752169342,0.97119057,4580.5,4580.4,0.79835215]
[1759752171046,0.00209057,4580.5,4580.4,0.79835215]
[1759752175245,0.00209057,4580.5,4580.4,41.59835215]
[1759752177766,0.32369057,4580.5,4580.4,41.59835215]
[1759752177964,0.32369057,4580.5,4580.4,41.37815215]
[1759752179160,0.53869057,4580.5,4580.4,0.79835215]
[1759752179665,0.00209057,4580.5,4580.4,0.79835215]
[1759752179862,0.21709057,4580.5,4580.4,1.19117215]
[1759752180163,0.53869057,4580.5,4580.4,1.19117215]
[1759752180563,0.00209057,4580.5,4580.4,1.19117215]
[1759752181265,0.53869057,4580.5,4580.4,1.19117215]
[1759752181463,0.76499057,4580.5,4580.4,1.19117215]
[1759752181765,0.44339057,4580.5,4580.4,1.19117215]
[1759752182160,0.76499057,4580.5,4580.4,1.19117215]
[1759752183065,0.21709057,4580.5,4580.4,1.19117215]
[1759752184160,0.53869057,4580.5,4580.4,1.19117215]
[1759752184862,1.15780057,4580.5,4580.4,0.79835215]
[1759752185064,1.29260057,4580.5,4580.4,0.23985215]
[1759752185267,1.29260057,4580.5,4580.4,0.63266215]
[1759752185469,1.29260057,4580.5,4580.4,0.97096215]
[1759752185967,1.29260057,4580.5,4580.4,0.01665215]
[1759752186863,1.29260057,4580.5,4580.4,0.97096215]
[1759752187367,1.15780057,4580.5,4580.4,0.97096215]
[1759752187866,0.76499057,4580.5,4580.4,1.19116215]
[1759752188268,0.22109057,4580.5,4580.4,1.19116215]
[1759752188473,0.00209057,4580.5,4580.4,1.19116215]
[1759752191664,0.48094288,4580.5,4580.4,1.19116215]
[1759752195578,1.24384288,4580.5,4580.4,1.19116215]
[1759752198276,6.76215288,4580.5,4580.4,0.01665215]
[1759752198480,0.7634,4579.5,4579.4,0.3295]
[1759752198676,1.58675231,4579.5,4579.4,0.5548]
[1759752199272,1.58675231,4579.5,4579.1,0.3295]
[1759752199273,0.39292,4579.2,4579.1,0.3295]
[1759752199480,4.58312,4579.2,4579.1,0.55727255]
[1759752199676,5.06197231,4579.2,4579.1,0.55727255]
[1759752200079,4.1902,4579.2,4579.1,0.55727255]
[1759752200375,0.3381,4579.9,4579.8,0.39287]
[1759752200576,3.6331,4580.2,4580.1,1.15524]
[1759752200782,3.6412,4580.2,4580.1,1.15524]
[1759752202283,0.21649057,4580.5,4580.4,1.15521]
[1759752202487,0.22109057,4580.5,4580.4,1.15521]
[1759752203382,0.43549057,4580.5,4580.4,1.15521]
[1759752210182,0.2144,4581.2,4581.1,1.15515]
[1759752210383,3.4222,4581.8,4581.7,1.1551]
[1759752210584,4.33058297,4581.8,4581.7,0.7624]
[1759752210783,4.66868297,4581.8,4581.7,0.7624]
[1759752210983,0.81802,4581.5,4581.4,0.2253]
[1759752211187,1.03976871,4581.5,4581.4,0.5548]
[1759752211690,1.85615833,4581.5,4581.4,0.5548]
[1759752212386,0.98514871,4581.5,4581.4,0.5548]
[1759752212989,0.98514871,4581.5,4581.4,0.7624]
[1759752213982,0.22174871,4581.5,4581.4,0.7624]
[1759752216093,0.22174871,4581.5,4581.4,41.5624]
[1759752216290,0.00274871,4581.5,4581.4,41.5624]
[1759752216598,0.00274871,4581.5,4581.4,41.7814]
[1759752216897,0.00274871,4581.5,4581.4,41.5624]
[1759752218093,0.00274871,4581.5,4581.4,41.7814]
[1759752219597,0.00274871,4581.5,4581.4,41.5624]
[1759752219792,0.00274871,4581.5,4581.4,41.95513]
[1759752227003,3.2078,4582.3,4582.2,1.14676]
[1759752227298,0.1255,4584.0,4582.2,1.14676]
[1759752227299,0.7507,4583.1,4583.0,1.26889]
[1759752227895,0.75331588,4583.1,4583.0,1.14826346]
[1759752228097,5.75331588,4583.1,4583.0,0.00157346]
[1759752228303,0.2081,4582.8,4582.7,0.39262]
[1759752228599,0.7572,4582.8,4582.7,41.19262]
[1759752228993,0.9762,4582.8,4582.7,41.19262]
[1759752229203,0.9762,4582.8,4582.7,1.15261341]
[1759752236711,0.219,4582.8,4582.7,1.15261341]
[1759752237405,0.4308,4582.8,4582.7,1.15261341]
[1759752237602,0.219,4582.8,4582.7,1.15261341]
[1759752239813,1.36881,4582.8,4582.7,0.00279341]
[1759752240111,1.45308792,4582.8,4582.7,0.39541341]
[1759752240306,1.45308792,4582.8,4582.7,0.93891341]
[1759752240811,1.45308792,4582.8,4582.7,1.15261341]
[1759752241205,0.47688792,4582.8,4582.7,1.15261341]
[1759752241905,0.21441588,4583.1,4583.0,1.28419]
[1759752242098,0.75981588,4583.1,4583.0,1.14979]
[1759752242300,0.89961016,4583.1,4583.0,1.28419]
[1759752243006,1.23691016,4583.1,4583.0,1.28419]
[1759752243407,1.23691016,4583.1,4583.0,1.14979]
[1759752244609,1.23691016,4583.1,4583.0,0.7572]
[1759752245599,0.69151016,4583.1,4583.0,0.8916]
[1759752246001,1.02881016,4583.1,4583.0,0.8916]
[1759752247008,1.23691016,4583.1,4583.0,0.7572]
[1759752247910,1.23691016,4583.1,4583.0,0.5435]
[1759752248110,0.7572,4582.9,4582.8,0.3926]
[1759752248408,1.62690428,4582.9,4582.7,0.00279341]
[1759752248609,1.23429428,4582.8,4582.7,0.00279341]
[1759752250011,0.7572,4582.8,4582.7,0.00279341]
[1759752250313,0.7572,4582.8,4582.7,0.39541341]
[1759752250505,1.14981,4582.8,4582.7,0.39541341]
[1759752250705,1.14981,4582.8,4582.7,0.00279341]
[1759752250706,1.62739033,4582.8,4582.7,0.00279341]
[1759752250902,1.62739033,4582.8,4582.7,0.39541341]
[1759752251104,1.62739033,4582.8,4582.7,0.00279341]
[1759752251306,0.3373,4582.1,4581.5,0.3323]
[1759752251608,0.5563,4582.0,4581.9,0.39269]
[1759752251813,0.9762,4582.0,4581.9,0.93619]
[1759752252013,1.36888,4582.0,4581.9,0.93619]
[1759752252216,1.50458,4582.0,4581.9,0.60389]
[1759752252414,1.50458,4582.0,4581.9,0.00264279]
[1759752253707,6.50458,4582.0,4581.9,0.00264279]
[1759752253912,6.50458,4582.0,4581.8,0.39269]
[1759752253913,1.28562,4581.5,4581.4,3.2078]
[1759752254118,1.76329693,4581.5,4581.4,3.2078]
[1759752255017,1.45387693,4581.5,4581.4,3.96709252]
[1759752255621,0.9762,4581.5,4581.4,3.96709252]
[1759752255819,0.7572,4581.5,4581.4,3.96709252]
[1759752256010,0.7572,4581.5,4581.4,3.75339252]
[1759752256214,0.8929,4581.5,4581.4,0.00209252]
[1759752256414,9.21294178,4581.5,4581.4,0.00209252]
[1759752261328,8.79304178,4581.5,4580.3,3.5283]
[1759752261524,0.5408,4580.9,4580.5,0.1229]
[1759752261725,0.39273,4581.4,4580.8,0.4291]
[1759752262031,0.4364,4581.3,4581.2,1.14235]
[1759752262226,0.978,4581.3,4581.2,1.14235]
[1759752262426,1.37074,4581.3,4581.2,0.00260412]
[1759752263033,4.15897219,4581.3,4581.2,0.00260412]
[1759752263329,0.978,4581.3,4581.2,0.75220412]
[1759752264237,0.978,4581.3,4581.2,0.53310412]
[1759752265340,0.978,4581.3,4581.2,0.75220412]
[1759752266140,0.978,4581.3,4581.2,0.00260412]
[1759752266627,0.4356,4580.7,4580.6,0.5305]
[1759752266832,0.759,4580.5,4580.4,3.2078]
[1759752267129,0.759,4580.5,4580.4,3.9574]
[1759752267729,0.2174,4580.5,4580.4,3.95938038]
[1759752268937,0.219,4580.7,4580.6,0.21]
[1759752269141,0.219,4580.7,4580.6,0.7496]
[1759752270141,0.61018,4580.8,4580.7,1.14239]
[1759752270335,0.82918,4580.8,4580.7,1.14239]
[1759752271641,0.4364,4580.8,4580.7,1.14239]
[1759752271838,0.219,4580.8,4580.7,1.14239]
[1759752273436,0.39272,4581.6,4581.5,0.39272]
[1759752273649,0.4364,4581.6,4581.5,0.8725]
[1759752273939,0.978,4581.6,4581.5,0.8725]
[1759752274138,0.978,4581.6,4581.5,0.7496]
[1759752274445,1.37071,4581.6,4581.5,0.7496]
[1759752275143,0.978,4581.6,4581.5,0.7496]
[1759752275340,0.759,4581.6,4581.5,0.8847]
[1759752275540,0.978,4581.6,4581.5,0.8847]
[1759752275947,1.37071,4581.6,4581.5,1.27742]
[1759752276546,0.4364,4581.6,4581.5,1.27742]
[1759752277147,0.7554,4581.6,4581.5,1.27742]
[1759752277342,0.1357,4582.0,4581.9,0.39268]
[1759752277343,0.39268,4582.0,4581.9,0.39268]
[1759752277550,1.34708,4582.0,4581.9,4.34948]
[1759752278438,0.7354,4582.0,4581.9,4.34948]
[1759752278639,0.219,4582.0,4581.9,4.34948]
[1759752279041,0.2115,4582.6,4582.5,0.8841]
[1759752279238,0.90685157,4582.6,4582.5,1.27673]
[1759752279549,0.9544,4582.6,4582.5,1.27673]
[1759752279741,0.5305,4582.8,4582.7,0.749]
[1759752279944,0.80905,4582.3,4582.2,0.524]
[1759752280140,1.60439234,4582.3,4582.2,0.524]
[1759752280542,0.39268,4582.0,4581.9,44.322]
[1759752280747,1.18802234,4582.0,4581.9,44.322]
[1759752281252,1.60442234,4582.0,4581.9,3.7318]
[1759752281650,1.12811,4581.6,4581.5,0.524]
[1759752282149,1.6048458,4581.6,4581.5,0.749]
[1759752282855,1.2121358,4581.6,4581.5,0.749]
[1759752285543,0.135,4581.5,4581.4,3.2078]
[1759752285750,0.7354,4580.9,4580.8,3.7318]
[1759752286052,0.9544,4580.9,4580.8,3.9568]
[1759752286456,0.9544,4580.9,4580.8,0.749]
[1759752287547,1.43132631,4580.9,4580.8,0.524]
[1759752287748,1.43132631,4580.9,4580.8,0.2098]
[1759752288048,1.43132631,4580.9,4580.4,0.53228038]
[1759752288049,0.7398,4580.5,4580.4,0.53228038]
[1759752288249,1.21672631,4580.5,4580.4,0.73688038]
[1759752288449,1.21672631,4580.5,4579.8,3.2078]
[1759752288450,0.7398,4580.4,4579.8,3.2078]
[1759752288648,1.13265,4580.0,4579.9,0.7349]
[1759752289550,0.219,4580.3,4580.2,0.39283]
[1759752289751,0.4384,4580.3,4580.2,1.12773]
[1759752290956,0.2194,4580.3,4580.2,1.12773]
[1759752291251,1.13257,4580.9,4580.8,0.5303]
[1759752291456,1.82817918,4580.9,4580.8,0.5303]
[1759752291655,4.65307551,4580.9,4580.8,0.5303]
[1759752292652,4.65307551,4580.9,4580.8,0.2152]
[1759752292852,1.1326,4580.6,4580.5,0.5303]
[1759752293456,1.1326,4580.6,4580.5,0.7349]
[1759752295156,0.2194,4581.0,4580.9,0.7349]
[1759752295362,0.4384,4581.0,4580.9,0.7349]
[1759752295563,0.83117,4581.0,4580.9,1.12767]
[1759752295763,0.2194,4581.0,4580.9,1.12767]
[1759752296155,0.4384,4581.0,4580.9,1.12767]
[1759752298665,0.219,4581.0,4580.9,1.12767]
[1759752299158,0.9588,4581.0,4580.9,0.5303]
[1759752300158,0.4384,4581.0,4580.9,1.12767]
[1759752300357,0.219,4581.0,4580.9,1.12767]
[1759752300561,3.4272,4581.5,4581.4,0.7349]
[1759752300759,0.4762934,4581.5,4581.4,1.12763]
[1759752300967,0.61211,4581.7,4581.6,0.7349]
[1759752301169,1.30736752,4581.7,4581.6,0.7349]
[1759752301359,1.82776752,4581.7,4581.6,0.7349]
[1759752301668,1.35151,4581.7,4581.6,0.7349]
[1759752302766,0.219,4581.7,4581.6,0.7349]
[1759752303259,0.4384,4581.7,4581.6,0.7349]
[1759752307769,0.749,4581.7,4581.6,0.7349]
[1759752307964,0.9588,4581.7,4581.6,0.7349]
[1759752308171,0.7398,4581.5,4581.4,4.13083]
[1759752308472,0.7398,4581.5,4581.4,4.33543]
[1759752310270,0.4292,4581.5,4581.4,4.33543]
[1759752311867,0.2194,4581.5,4581.4,4.33543]
[1759752312465,0.53,4581.5,4581.4,3.9427]
[1759752312668,0.2194,4581.5,4581.4,3.9427]
[1759752312876,0.61209,4581.9,4581.8,0.4198]
[1759752313165,1.14169,4581.9,4581.8,0.7349]
[1759752313368,0.39266,4582.2,4582.1,0.4198]
[1759752313569,1.08781024,4582.2,4582.1,0.7349]
[1759752313868,1.82761024,4582.2,4582.1,0.7349]
[1759752314974,1.35146,4582.2,4582.1,0.7349]
[1759752315170,1.82759544,4582.2,4582.1,0.7349]
[1759752315671,1.82759544,4582.2,4582.1,0.5303]
[1759752315871,1.26038,4582.0,4581.9,3.2078]
[1759752316763,1.73649714,4582.0,4581.9,3.2078]
[1759752317268,1.26038,4582.0,4581.9,3.2078]
[1759752317475,1.26038,4582.0,4581.9,3.5229]
[1759752317868,1.13248,4582.0,4581.9,3.9545]
[1759752319373,1.60871046,4582.0,4581.9,3.9545]
[1759752320076,1.13248,4582.0,4581.9,3.9545]
[1759752320276,1.608799,4582.0,4581.9,3.9545]
[1759752325375,1.736099,4582.0,4581.9,3.2078]
[1759752327776,0.4418,4581.6,4581.5,0.4303]
[1759752327978,1.859629,4581.6,4581.5,0.7526]
[1759752329783,1.859629,4581.6,4581.5,1.28082]
[1759752332581,1.088029,4581.6,4581.5,1.28082]
[1759752333379,0.476319,4581.6,4581.5,1.28082]
[1759752333579,0.3927,4581.8,4581.7,1.1453]
[1759752333775,1.08915466,4581.8,4581.7,1.1453]
[1759752333974,1.86075466,4581.8,4581.7,0.7526]
[1759752334175,0.4418,4581.4,4581.3,3.9604]
[1759752334374,0.9906,4581.4,4581.3,3.9604]
[1759752334584,1.46805466,4581.4,4581.3,3.9604]
[1759752335079,1.86078466,4581.4,4581.3,3.9604]
[1759752335576,0.69645466,4581.4,4581.3,3.9604]
[1759752336080,0.69645466,4581.4,4581.3,4.35314]
[1759752337280,0.47745466,4581.4,4581.3,4.35314]
[1759752337581,1.30488466,4581.4,4581.3,4.35314]
[1759752339384,1.85918466,4581.4,4581.3,3.9604]
[1759752340277,1.46645466,4581.4,4581.3,4.35314]
[1759752340478,1.13235466,4581.4,4581.3,4.35314]
[1759752340780,1.52508466,4581.4,4581.3,4.35314]
[1759752340977,0.69645466,4581.4,4581.3,4.35314]
[1759752344887,0.91215466,4581.4,4581.3,4.35314]
[1759752345386,0.69645466,4581.4,4581.3,4.35314]
[1759752351086,1.22265466,4581.4,4581.3,4.35314]
[1759752351484,0.91475466,4581.4,4581.3,4.35314]
[1759752351891,1.30748466,4581.4,4581.3,4.35314]
[1759752352295,1.61538466,4581.4,4581.3,4.35314]
[1759752352491,1.30748466,4581.4,4581.3,4.35314]
[1759752353287,1.61538466,4581.4,4581.3,4.35314]
[1759752354092,0.69645466,4581.4,4581.3,4.35314]
[1759752354298,0.47745466,4581.4,4581.3,4.35314]
[1759752354500,0.219,4581.4,4581.3,4.35314]
[1759752355388,0.69674009,4581.4,4581.3,4.35314]
[1759752355995,1.30777009,4581.4,4581.3,4.35314]
[1759752356188,1.08947009,4581.4,4581.3,4.35314]
[1759752356898,1.83507009,4581.4,4581.3,0.7526]
[1759752358993,4.61298806,4581.4,4581.3,0.5362]
[1759752359290,0.2194,4581.1,4581.0,0.2207]
[1759752359496,1.61609009,4581.1,4581.0,0.5428]
[1759752359998,1.61609009,4581.1,4581.0,0.2207]
[1759752360399,1.61609009,4581.1,4581.0,0.5428]
[1759752360998,1.61609009,4581.1,4581.0,0.7526]
[1759752361492,0.47774009,4581.1,4581.0,0.8789]
[1759752361793,0.69674009,4581.1,4581.0,0.8789]
[1759752362793,0.91504009,4581.1,4581.0,0.8789]
[1759752362986,1.30779009,4581.1,4581.0,0.8789]
[1759752363392,1.30779009,4581.1,4581.0,1.27166]
[1759752363792,1.08949009,4581.1,4581.0,1.27166]
[1759752364388,1.08949009,4581.1,4581.0,0.8789]
[1759752364588,1.08949009,4581.1,4581.0,1.27166]
[1759752365392,0.69674009,4581.1,4581.0,1.27166]
[1759752367404,0.61101,4581.6,4581.5,0.9495]
[1759752367701,1.30720097,4581.6,4581.5,4.4794]
[1759752368200,1.08820097,4581.6,4581.5,4.4794]
[1759752368498,1.30720097,4581.6,4581.5,4.4794]
[1759752371303,1.61510097,4581.6,4581.5,4.47942]
[1759752371705,1.61510097,4581.6,4581.5,0.5428]
[1759752371706,1.83450097,4581.6,4581.5,0.5428]
[1759752375193,1.44179097,4581.6,4581.0,0.1263]
[1759752375399,1.13835,4581.1,4581.0,0.8789]
[1759752375606,1.83454097,4581.1,4581.0,0.7526]
[1759752375994,1.35735,4581.1,4581.0,0.7526]
[1759752376201,1.83458265,4581.1,4581.0,0.7526]
[1759752376808,1.83458265,4581.1,4581.0,1.27166]
[1759752377409,1.83459128,4581.1,4581.0,1.27166]
[1759752377613,1.44184128,4581.1,4581.0,1.27166]
[1759752378714,1.83459128,4581.1,4581.0,1.14536]
[1759752379013,1.83459128,4581.1,4581.0,1.26836]
[1759752380009,1.44184128,4581.1,4581.0,1.26836]
[1759752380313,0.9646,4581.1,4581.0,1.26836]
[1759752381014,1.35735,4581.1,4581.0,1.26836]
[1759752381401,0.9646,4581.1,4581.0,1.26836]
[1759752381608,1.35735,4581.1,4581.0,1.26836]
[1759752382119,0.9646,4581.1,4581.0,1.26836]
[1759752382913,0.219,4581.1,4581.0,1.26836]
[1759752383209,0.219,4581.1,4580.6,0.98199]
[1759752383210,0.81729,4580.7,4580.6,0.71829]
[1759752383414,1.14691,4580.4,4580.3,3.7501]
[1759752383712,1.84324937,4580.4,4580.3,3.2078]
[1759752384712,0.94745,4580.0,4579.9,0.21896725]
[1759752385017,1.75419866,4580.0,4579.9,0.21896725]
[1759752385315,1.75419866,4580.0,4579.9,0.54446725]
[1759752386015,1.75419866,4580.0,4579.9,0.00216725]
[1759752386512,4.59757003,4580.0,4579.9,0.00216725]
[1759752386708,4.81657003,4580.0,4579.9,0.00216725]
[1759752387012,4.81657003,4580.0,4578.7,0.219]
[1759752387013,0.39295,4578.8,4578.7,3.2078]
[1759752387214,1.36605,4578.8,4578.7,3.9646]
[1759752387515,1.36605,4578.8,4578.7,0.7568]
[1759752388018,1.36761092,4578.8,4578.7,0.75897212]
[1759752389519,0.43686092,4578.8,4578.7,0.75897212]
[1759752390309,0.97466092,4578.8,4578.7,0.75897212]
[1759752390902,0.22056092,4578.8,4578.7,0.75897212]
[1759752392410,0.43686092,4578.8,4578.7,0.75897212]
[1759752392615,0.22056092,4578.8,4578.7,0.75897212]
[1759752393015,0.00156092,4578.8,4578.7,0.75897212]
[1759752393215,0.22056092,4578.8,4578.7,0.75897212]
[1759752393416,0.00156092,4578.8,4578.7,0.75897212]
[1759752393616,0.22056092,4578.8,4578.7,0.75897212]
[1759752393819,0.00156092,4578.8,4578.7,0.75897212]
[1759752394117,0.22056092,4578.8,4578.7,0.75897212]
[1759752394818,0.43616092,4578.8,4578.7,0.75897212]
[1759752395020,0.74346092,4578.8,4578.7,0.75897212]
[1759752395519,0.43616092,4578.8,4578.7,0.75897212]
[1759752397915,0.95936092,4578.8,4578.7,0.75897212]
[1759752398919,1.35231092,4578.8,4578.7,4.35973212]
[1759752399122,1.35231092,4578.8,4578.7,3.96677212]
[1759752400115,1.35231092,4578.8,4578.7,4.35973212]
[1759752400922,1.35231092,4578.8,4578.7,3.96677212]
[1759752402921,1.35231092,4578.8,4578.7,0.00217212]
[1759752403512,1.35231092,4578.8,4578.7,0.33717212]
[1759752403824,1.35231092,4578.8,4578.7,0.00217212]
[1759752407327,1.35231092,4578.8,4578.7,0.55287212]
[1759752412221,1.35231092,4578.8,4578.7,0.00217212]
[1759752412528,1.82932056,4578.8,4578.7,0.00217212]
[1759752413729,1.82932056,4578.8,4578.7,0.53937212]
[1759752414029,1.52202056,4578.8,4578.7,0.75917212]
[1759752414432,0.00156092,4578.8,4578.7,1.15213212]
[1759752414631,0.22056092,4578.8,4578.7,1.15213212]
[1759752415724,0.98224,4579.5,4578.7,1.15213212]
[1759752415725,0.61692,4579.3,4579.2,0.82171]
[1759752415932,0.61692,4579.3,4579.2,1.14991]
[1759752415933,1.31371138,4579.3,4579.2,1.14991]
[1759752416129,1.31371138,4579.3,4579.2,4.35771]
[1759752416334,1.31371138,4579.3,4579.2,3.9648]
[1759752416730,1.31588745,4579.3,4579.2,3.9648]
[1759752417126,1.31588745,4579.3,4579.2,4.35772]
[1759752417327,1.09188745,4579.3,4579.2,4.35772]
[1759752417527,0.47996745,4579.3,4579.2,4.35772]
[1759752417728,5.36266798,4580.2,4579.2,8.6366]
[1759752417729,3.5194,4580.2,4579.2,8.6366]
[1759752417929,0.47790233,4580.1,4580.0,0.95315]
[1759752418123,0.69690233,4580.1,4580.0,1.28135]
[1759752418737,0.22090987,4580.1,4580.0,1.28135]
[1759752419337,0.22090987,4580.1,4580.0,0.8885]
[1759752421737,0.44490987,4580.1,4580.0,0.8885]
[1759752421935,0.53750987,4580.1,4580.0,0.8885]
[1759752422129,0.44490987,4580.1,4580.0,0.8885]
[1759752422730,0.96970987,4580.1,4580.0,0.757]
[1759752423132,0.96970987,4580.1,4580.0,0.8885]
[1759752423331,0.22090987,4580.1,4580.0,0.8885]
[1759752423534,0.00190987,4580.1,4580.0,0.8885]
[1759752424731,0.00190987,4580.1,4580.0,5.8885]
[1759752424935,0.39276,4581.1,4580.0,5.8885]
[1759752424936,0.39275,4581.1,4581.0,0.8885]
[1759752425143,1.31174548,4581.1,4581.0,0.8885]
[1759752425639,0.39279,4580.7,4580.6,0.3282]
[1759752425940,1.14349862,4580.7,4580.6,0.5372]
[1759752426341,1.14349862,4580.7,4580.6,0.757]
[1759752427038,0.75070862,4580.7,4580.6,0.757]
[1759752427240,0.1262,4581.5,4580.6,0.757]
[1759752427241,3.334,4582.5,4581.7,0.3282]
[1759752427438,3.334,4582.5,4581.5,0.1315]
[1759752427439,1.14149,4581.9,4581.8,0.757]
[1759752427741,0.4372,4581.2,4581.1,0.209]
[1759752427939,0.7488,4581.2,4581.1,0.5372]
[1759752428137,0.750809,4581.2,4581.1,0.757]
[1759752428442,0.226009,4581.2,4581.1,0.757]
[1759752429137,0.002009,4581.2,4581.1,0.757]
[1759752433046,0.3116,4582.5,4582.0,0.1315]
[1759752433237,1.14143,4582.5,4582.4,0.5372]
[1759752433538,1.36043,4582.5,4582.4,0.5372]
[1759752433934,0.3116,4582.9,4582.4,0.4288]
[1759752434135,0.4372,4582.6,4582.5,0.5372]
[1759752434340,0.7488,4582.6,4582.5,0.5372]
[1759752434541,0.9678,4582.6,4582.5,0.5372]
[1759752434736,1.26763,4582.5,4582.4,0.00200735]
[1759752435638,0.7488,4582.5,4582.4,0.75900735]
[1759752437644,0.9678,4582.5,4582.4,0.75900735]
[1759752438638,0.7488,4582.5,4582.4,0.75900735]
[1759752438942,0.4372,4582.5,4582.4,0.75900735]
[1759752439432,0.00194412,4582.9,4582.4,0.75900735]
[1759752439433,0.30924412,4582.9,4582.5,0.9073]
[1759752439644,0.22274412,4582.9,4582.8,1.16791]
[1759752439933,0.00194412,4582.9,4582.8,1.16791]
[1759752440138,0.74284412,4582.9,4582.8,0.7753]
[1759752440534,0.00194412,4582.9,4582.8,0.7753]
[1759752444147,0.00194412,4582.9,4582.8,41.5753]
[1759752444541,0.00194412,4582.9,4582.8,41.7943]
[1759752444734,0.3073,4583.8,4582.9,0.98151]
[1759752444940,0.39249,4584.2,4584.1,0.4415]
[1759752445241,0.4398,4584.5,4584.4,0.4415]
[1759752445446,0.9599,4584.5,4584.4,0.7753]
[1759752445842,1.13339,4584.2,4584.1,0.2163]
[1759752446339,0.35093212,4584.5,4583.6,3.9831]
[1759752446340,0.2208,4583.7,4583.6,3.9831]
[1759752447343,0.2208,4584.1,4584.0,0.3483]
[1759752447549,0.2208,4584.1,4584.0,0.9073]